Workbook

Sheet Sheet1
A1: Expense | B1: One Person | C1: Two Persons | D1: Three Persons | E1: Four Persons | I1: Under 65 | J1: 79 | N1: Public Transp | O1: Allowed Amount
A2: Food | B2: 466 | C2: 777 | D2: 936 | E2: 1123 | I2: 65 and Older | J2: 154 | N2: National | O2: 218
A3: Housekeeping supplies | B3: 47 | C3: 80 | D3: 85 | E3: 90 | N3: Ownership Costs
A4: Apparel & services | B4: 96 | C4: 145 | D4: 207 | E4: 252 | N4: Location | O4: One Car | P4: Two Cars
A5: Personal care products & services | B5: 43 | C5: 78 | D5: 91 | E5: 97 | N5: National | O5: 629 | P5: 1258
A6: Miscellaneous | B6: 189 | C6: 309 | D6: 381 | E6: 431 | N6: South Region | O6: 242 | P6: 484
A7: Total | B7: 841 | C7: 1389 | D7: 1700 | E7: 1993
A8: For each additional person, add to four-person total allowance: | B8: 356 | N8: South Region Operating Costs
N9: Location | O9: One Car | P9: Two Cars
N10: South Region | O10: 242 | P10: 484

Sheet Sheet2
A1: County | B1: 2023 | C1: 2023 | D1: 2023 | E1: 2023 | F1: 2023
B2: Published | C2: Published | D2: Published | E2: Published ALE Housing Expense for a Family of 4 | F2: Published
B3: ALE Housing Expense for a Family of 1 | C3: ALE Housing Expense for a Family of 2 | D3: ALE Housing Expense for a Family of 3 | E3: ALE Housing Expense for a Family of 4 | F3: ALE Housing Expense for a Family of 5 or more
A4: Anderson County | B4: 1471 | C4: 1728 | D4: 1821 | E4: 2030 | F4: 2063
A5: Bedford County | B5: 1399 | C5: 1644 | D5: 1732 | E5: 1931 | F5: 1962
A6: Benton County | B6: 1219 | C6: 1432 | D6: 1509 | E6: 1683 | F6: 1710
A7: Bledsoe County | B7: 1282 | C7: 1506 | D7: 1587 | E7: 1770 | F7: 1798
A8: Blount County | B8: 1555 | C8: 1827 | D8: 1925 | E8: 2146 | F8: 2181
A9: Bradley County | B9: 1478 | C9: 1736 | D9: 1829 | E9: 2039 | F9: 2072
A10: Campbell County | B10: 1276 | C10: 1498 | D10: 1579 | E10: 1761 | F10: 1789
A11: Cannon County | B11: 1438 | C11: 1689 | D11: 1780 | E11: 1985 | F11: 2017
A12: Carroll County | B12: 1242 | C12: 1459 | D12: 1537 | E12: 1714 | F12: 1741
A13: Carter County | B13: 1284 | C13: 1508 | D13: 1589 | E13: 1772 | F13: 1800
A14: Cheatham County | B14: 1631 | C14: 1916 | D14: 2019 | E14: 2251 | F14: 2288
A15: Chester County | B15: 1339 | C15: 1572 | D15: 1657 | E15: 1848 | F15: 1877
A16: Claiborne County | B16: 1214 | C16: 1426 | D16: 1503 | E16: 1676 | F16: 1703
A17: Clay County | B17: 1196 | C17: 1405 | D17: 1480 | E17: 1650 | F17: 1677
A18: Cocke County | B18: 1259 | C18: 1479 | D18: 1558 | E18: 1737 | F18: 1765
A19: Coffee County | B19: 1443 | C19: 1695 | D19: 1786 | E19: 1991 | F19: 2024
A20: Crockett County | B20: 1256 | C20: 1475 | D20: 1554 | E20: 1733 | F20: 1761
A21: Cumberland County | B21: 1264 | C21: 1484 | D21: 1564 | E21: 1744 | F21: 1772
A22: Davidson County | B22: 1799 | C22: 2112 | D22: 2226 | E22: 2482 | F22: 2522
A23: Decatur County | B23: 1315 | C23: 1545 | D23: 1628 | E23: 1815 | F23: 1845
A24: DeKalb County | B24: 1315 | C24: 1545 | D24: 1628 | E24: 1815 | F24: 1845
A25: Dickson County | B25: 1533 | C25: 1800 | D25: 1897 | E25: 2115 | F25: 2149
A26: Dyer County | B26: 1321 | C26: 1552 | D26: 1635 | E26: 1823 | F26: 1852
A27: Fayette County | B27: 1654 | C27: 1943 | D27: 2047 | E27: 2282 | F27: 2319
A28: Fentress County | B28: 1144 | C28: 1344 | D28: 1416 | E28: 1579 | F28: 1604
A29: Franklin County | B29: 1430 | C29: 1680 | D29: 1770 | E29: 1974 | F29: 2005
A30: Gibson County | B30: 1399 | C30: 1644 | D30: 1732 | E30: 1931 | F30: 1962
A31: Giles County | B31: 1420 | C31: 1667 | D31: 1757 | E31: 1959 | F31: 1991
A32: Grainger County | B32: 1357 | C32: 1593 | D32: 1679 | E32: 1872 | F32: 1902
A33: Greene County | B33: 1291 | C33: 1517 | D33: 1598 | E33: 1782 | F33: 1811
A34: Grundy County | B34: 1214 | C34: 1426 | D34: 1503 | E34: 1676 | F34: 1703
A35: Hamblen County | B35: 1298 | C35: 1524 | D35: 1606 | E35: 1791 | F35: 1820
A36: Hamilton County | B36: 1569 | C36: 1843 | D36: 1942 | E36: 2165 | F36: 2200
A37: Hancock County | B37: 1244 | C37: 1461 | D37: 1539 | E37: 1716 | F37: 1744
A38: Hardeman County | B38: 1225 | C38: 1439 | D38: 1516 | E38: 1690 | F38: 1718
A39: Hardin County | B39: 1172 | C39: 1376 | D39: 1450 | E39: 1617 | F39: 1643
A40: Hawkins County | B40: 1295 | C40: 1521 | D40: 1603 | E40: 1787 | F40: 1816
A41: Haywood County | B41: 1278 | C41: 1501 | D41: 1582 | E41: 1764 | F41: 1792
A42: Henderson County | B42: 1218 | C42: 1431 | D42: 1508 | E42: 1681 | F42: 1709
A43: Henry County | B43: 1255 | C43: 1474 | D43: 1553 | E43: 1732 | F43: 1760
A44: Hickman County | B44: 1352 | C44: 1588 | D44: 1673 | E44: 1865 | F44: 1896
A45: Houston County | B45: 1351 | C45: 1587 | D45: 1672 | E45: 1864 | F45: 1894
A46: Humphreys County | B46: 1353 | C46: 1589 | D46: 1674 | E46: 1867 | F46: 1897
A47: Jackson County | B47: 1268 | C47: 1489 | D47: 1569 | E47: 1749 | F47: 1778
A48: Jefferson County | B48: 1345 | C48: 1579 | D48: 1664 | E48: 1855 | F48: 1885
A49: Johnson County | B49: 1165 | C49: 1368 | D49: 1442 | E49: 1608 | F49: 1634
A50: Knox County | B50: 1583 | C50: 1859 | D50: 1959 | E50: 2184 | F50: 2220
A51: Lake County | B51: 1213 | C51: 1424 | D51: 1501 | E51: 1674 | F51: 1701
A52: Lauderdale County | B52: 1251 | C52: 1469 | D52: 1548 | E52: 1726 | F52: 1754
A53: Lawrence County | B53: 1315 | C53: 1545 | D53: 1628 | E53: 1815 | F53: 1845
A54: Lewis County | B54: 1290 | C54: 1515 | D54: 1596 | E54: 1780 | F54: 1808
A55: Lincoln County | B55: 1424 | C55: 1672 | D55: 1762 | E55: 1965 | F55: 1996
A56: Loudon County | B56: 1522 | C56: 1788 | D56: 1884 | E56: 2101 | F56: 2135
A57: McMinn County | B57: 1339 | C57: 1572 | D57: 1657 | E57: 1848 | F57: 1877
A58: McNairy County | B58: 1264 | C58: 1484 | D58: 1564 | E58: 1744 | F58: 1772
A59: Macon County | B59: 1371 | C59: 1610 | D59: 1697 | E59: 1892 | F59: 1923
A60: Madison County | B60: 1478 | C60: 1736 | D60: 1829 | E60: 2039 | F60: 2072
A61: Marion County | B61: 1412 | C61: 1658 | D61: 1747 | E61: 1948 | F61: 1979
A62: Marshall County | B62: 1431 | C62: 1681 | D62: 1771 | E62: 1975 | F62: 2007
A63: Maury County | B63: 1599 | C63: 1878 | D63: 1979 | E63: 2207 | F63: 2242
A64: Meigs County | B64: 1361 | C64: 1598 | D64: 1684 | E64: 1878 | F64: 1908
A65: Monroe County | B65: 1344 | C65: 1578 | D65: 1663 | E65: 1854 | F65: 1884
A66: Montgomery County | B66: 1582 | C66: 1858 | D66: 1958 | E66: 2183 | F66: 2218
A67: Moore County | B67: 1615 | C67: 1897 | D67: 1999 | E67: 2229 | F67: 2265
A68: Morgan County | B68: 1241 | C68: 1458 | D68: 1536 | E68: 1713 | F68: 1740
A69: Obion County | B69: 1213 | C69: 1424 | D69: 1501 | E69: 1674 | F69: 1701
A70: Overton County | B70: 1235 | C70: 1450 | D70: 1528 | E70: 1704 | F70: 1731
A71: Perry County | B71: 1150 | C71: 1350 | D71: 1423 | E71: 1587 | F71: 1612
A72: Pickett County | B72: 1289 | C72: 1514 | D72: 1595 | E72: 1778 | F72: 1807
A73: Polk County | B73: 1307 | C73: 1535 | D73: 1617 | E73: 1803 | F73: 1832
A74: Putnam County | B74: 1422 | C74: 1670 | D74: 1760 | E74: 1962 | F74: 1994
A75: Rhea County | B75: 1356 | C75: 1592 | D75: 1678 | E75: 1871 | F75: 1901
A76: Roane County | B76: 1488 | C76: 1747 | D76: 1841 | E76: 2053 | F76: 2086
A77: Robertson County | B77: 1648 | C77: 1936 | D77: 2040 | E77: 2275 | F77: 2311
A78: Rutherford County | B78: 1705 | C78: 2002 | D78: 2110 | E78: 2353 | F78: 2391
A79: Scott County | B79: 1209 | C79: 1420 | D79: 1496 | E79: 1668 | F79: 1695
A80: Sequatchie County | B80: 1403 | C80: 1647 | D80: 1736 | E80: 1936 | F80: 1967
A81: Sevier County | B81: 1470 | C81: 1726 | D81: 1819 | E81: 2028 | F81: 2061
A82: Shelby County | B82: 1673 | C82: 1964 | D82: 2070 | E82: 2308 | F82: 2345
A83: Smith County | B83: 1428 | C83: 1677 | D83: 1767 | E83: 1970 | F83: 2002
A84: Stewart County | B84: 1515 | C84: 1779 | D84: 1875 | E84: 2091 | F84: 2124
A85: Sullivan County | B85: 1374 | C85: 1614 | D85: 1701 | E85: 1897 | F85: 1927
A86: Sumner County | B86: 1765 | C86: 2073 | D86: 2184 | E86: 2435 | F86: 2474
A87: Tipton County | B87: 1524 | C87: 1790 | D87: 1886 | E87: 2103 | F87: 2137
A88: Trousdale County | B88: 1490 | C88: 1750 | D88: 1844 | E88: 2056 | F88: 2089
A89: Unicoi County | B89: 1227 | C89: 1441 | D89: 1518 | E89: 1693 | F89: 1720
A90: Union County | B90: 1319 | C90: 1549 | D90: 1632 | E90: 1820 | F90: 1849
A91: Van Buren County | B91: 1058 | C91: 1242 | D91: 1309 | E91: 1460 | F91: 1483
A92: Warren County | B92: 1223 | C92: 1437 | D92: 1514 | E92: 1688 | F92: 1715
A93: Washington County | B93: 1446 | C93: 1698 | D93: 1789 | E93: 1995 | F93: 2027
A94: Wayne County | B94: 1257 | C94: 1477 | D94: 1556 | E94: 1735 | F94: 1763
A95: Weakley County | B95: 1196 | C95: 1405 | D95: 1480 | E95: 1650 | F95: 1677
A96: White County | B96: 1291 | C96: 1517 | D96: 1598 | E96: 1782 | F96: 1811
A97: Williamson County | B97: 2458 | C97: 2887 | D97: 3042 | E97: 3392 | F97: 3447
A98: Wilson County | B98: 1910 | C98: 2243 | D98: 2364 | E98: 2636 | F98: 2678
A100: Related Topic
A102: Local Standards: Housing and Utilities

Sheet Sheet3
A1: 2023 Published ALE
A4: Food, Clothing & Other items
A5: Expense | C5: One Person | D5: Two Persons | E5: Three Persons | F5: Four Persons
A6: Food | C6: 466 | D6: 777 | E6: 936 | F6: 1123
A7: Housekeeping supplies | C7: 47 | D7: 80 | E7: 85 | F7: 90
A8: Apparel & services | C8: 96 | D8: 145 | E8: 207 | F8: 252
A9: Personal care prod's/srvcs | C9: 43 | D9: 78 | E9: 91 | F9: 97
A10: Miscellaneous | C10: 189 | D10: 309 | E10: 381 | F10: 431
A11: Total | C11: 841 | D11: 1389 | E11: 1700 | F11: 1993
A12: For each additional person, add to four-person total allowance: $356
A14: Housing Expense for a Family of:
A15: County | B15: 1 | C15: 2 | D15: 3 | E15: 4 | F15: 5 (+)
A16: Anderson | B16: =_xlfn.XLOOKUP($A16&" County",Sheet2!$A$4:$A$98,Sheet2!B$4:B$98) -> 1471 | C16: =_xlfn.XLOOKUP($A16&" County",Sheet2!$A$4:$A$98,Sheet2!C$4:C$98) -> 1728 | D16: =_xlfn.XLOOKUP($A16&" County",Sheet2!$A$4:$A$98,Sheet2!D$4:D$98) -> 1821 | E16: =_xlfn.XLOOKUP($A16&" County",Sheet2!$A$4:$A$98,Sheet2!E$4:E$98) -> 2030 | F16: =_xlfn.XLOOKUP($A16&" County",Sheet2!$A$4:$A$98,Sheet2!F$4:F$98) -> 2063
A17: Blount | B17: =_xlfn.XLOOKUP($A17&" County",Sheet2!$A$4:$A$98,Sheet2!B$4:B$98) -> 1555 | C17: =_xlfn.XLOOKUP($A17&" County",Sheet2!$A$4:$A$98,Sheet2!C$4:C$98) -> 1827 | D17: =_xlfn.XLOOKUP($A17&" County",Sheet2!$A$4:$A$98,Sheet2!D$4:D$98) -> 1925 | E17: =_xlfn.XLOOKUP($A17&" County",Sheet2!$A$4:$A$98,Sheet2!E$4:E$98) -> 2146 | F17: =_xlfn.XLOOKUP($A17&" County",Sheet2!$A$4:$A$98,Sheet2!F$4:F$98) -> 2181
A18: Bradley | B18: =_xlfn.XLOOKUP($A18&" County",Sheet2!$A$4:$A$98,Sheet2!B$4:B$98) -> 1478 | C18: =_xlfn.XLOOKUP($A18&" County",Sheet2!$A$4:$A$98,Sheet2!C$4:C$98) -> 1736 | D18: =_xlfn.XLOOKUP($A18&" County",Sheet2!$A$4:$A$98,Sheet2!D$4:D$98) -> 1829 | E18: =_xlfn.XLOOKUP($A18&" County",Sheet2!$A$4:$A$98,Sheet2!E$4:E$98) -> 2039 | F18: =_xlfn.XLOOKUP($A18&" County",Sheet2!$A$4:$A$98,Sheet2!F$4:F$98) -> 2072
A19: Cumberland | B19: =_xlfn.XLOOKUP($A19&" County",Sheet2!$A$4:$A$98,Sheet2!B$4:B$98) -> 1264 | C19: =_xlfn.XLOOKUP($A19&" County",Sheet2!$A$4:$A$98,Sheet2!C$4:C$98) -> 1484 | D19: =_xlfn.XLOOKUP($A19&" County",Sheet2!$A$4:$A$98,Sheet2!D$4:D$98) -> 1564 | E19: =_xlfn.XLOOKUP($A19&" County",Sheet2!$A$4:$A$98,Sheet2!E$4:E$98) -> 1744 | F19: =_xlfn.XLOOKUP($A19&" County",Sheet2!$A$4:$A$98,Sheet2!F$4:F$98) -> 1772
A20: Davidson | B20: =_xlfn.XLOOKUP($A20&" County",Sheet2!$A$4:$A$98,Sheet2!B$4:B$98) -> 1799 | C20: =_xlfn.XLOOKUP($A20&" County",Sheet2!$A$4:$A$98,Sheet2!C$4:C$98) -> 2112 | D20: =_xlfn.XLOOKUP($A20&" County",Sheet2!$A$4:$A$98,Sheet2!D$4:D$98) -> 2226 | E20: =_xlfn.XLOOKUP($A20&" County",Sheet2!$A$4:$A$98,Sheet2!E$4:E$98) -> 2482 | F20: =_xlfn.XLOOKUP($A20&" County",Sheet2!$A$4:$A$98,Sheet2!F$4:F$98) -> 2522
A21: DeKalb | B21: =_xlfn.XLOOKUP($A21&" County",Sheet2!$A$4:$A$98,Sheet2!B$4:B$98) -> 1315 | C21: =_xlfn.XLOOKUP($A21&" County",Sheet2!$A$4:$A$98,Sheet2!C$4:C$98) -> 1545 | D21: =_xlfn.XLOOKUP($A21&" County",Sheet2!$A$4:$A$98,Sheet2!D$4:D$98) -> 1628 | E21: =_xlfn.XLOOKUP($A21&" County",Sheet2!$A$4:$A$98,Sheet2!E$4:E$98) -> 1815 | F21: =_xlfn.XLOOKUP($A21&" County",Sheet2!$A$4:$A$98,Sheet2!F$4:F$98) -> 1845
A22: Franklin | B22: =_xlfn.XLOOKUP($A22&" County",Sheet2!$A$4:$A$98,Sheet2!B$4:B$98) -> 1430 | C22: =_xlfn.XLOOKUP($A22&" County",Sheet2!$A$4:$A$98,Sheet2!C$4:C$98) -> 1680 | D22: =_xlfn.XLOOKUP($A22&" County",Sheet2!$A$4:$A$98,Sheet2!D$4:D$98) -> 1770 | E22: =_xlfn.XLOOKUP($A22&" County",Sheet2!$A$4:$A$98,Sheet2!E$4:E$98) -> 1974 | F22: =_xlfn.XLOOKUP($A22&" County",Sheet2!$A$4:$A$98,Sheet2!F$4:F$98) -> 2005
A23: Grundy | B23: =_xlfn.XLOOKUP($A23&" County",Sheet2!$A$4:$A$98,Sheet2!B$4:B$98) -> 1214 | C23: =_xlfn.XLOOKUP($A23&" County",Sheet2!$A$4:$A$98,Sheet2!C$4:C$98) -> 1426 | D23: =_xlfn.XLOOKUP($A23&" County",Sheet2!$A$4:$A$98,Sheet2!D$4:D$98) -> 1503 | E23: =_xlfn.XLOOKUP($A23&" County",Sheet2!$A$4:$A$98,Sheet2!E$4:E$98) -> 1676 | F23: =_xlfn.XLOOKUP($A23&" County",Sheet2!$A$4:$A$98,Sheet2!F$4:F$98) -> 1703
A24: Hamilton | B24: =_xlfn.XLOOKUP($A24&" County",Sheet2!$A$4:$A$98,Sheet2!B$4:B$98) -> 1569 | C24: =_xlfn.XLOOKUP($A24&" County",Sheet2!$A$4:$A$98,Sheet2!C$4:C$98) -> 1843 | D24: =_xlfn.XLOOKUP($A24&" County",Sheet2!$A$4:$A$98,Sheet2!D$4:D$98) -> 1942 | E24: =_xlfn.XLOOKUP($A24&" County",Sheet2!$A$4:$A$98,Sheet2!E$4:E$98) -> 2165 | F24: =_xlfn.XLOOKUP($A24&" County",Sheet2!$A$4:$A$98,Sheet2!F$4:F$98) -> 2200
A25: Knox | B25: =_xlfn.XLOOKUP($A25&" County",Sheet2!$A$4:$A$98,Sheet2!B$4:B$98) -> 1583 | C25: =_xlfn.XLOOKUP($A25&" County",Sheet2!$A$4:$A$98,Sheet2!C$4:C$98) -> 1859 | D25: =_xlfn.XLOOKUP($A25&" County",Sheet2!$A$4:$A$98,Sheet2!D$4:D$98) -> 1959 | E25: =_xlfn.XLOOKUP($A25&" County",Sheet2!$A$4:$A$98,Sheet2!E$4:E$98) -> 2184 | F25: =_xlfn.XLOOKUP($A25&" County",Sheet2!$A$4:$A$98,Sheet2!F$4:F$98) -> 2220
A26: Loudon | B26: =_xlfn.XLOOKUP($A26&" County",Sheet2!$A$4:$A$98,Sheet2!B$4:B$98) -> 1522 | C26: =_xlfn.XLOOKUP($A26&" County",Sheet2!$A$4:$A$98,Sheet2!C$4:C$98) -> 1788 | D26: =_xlfn.XLOOKUP($A26&" County",Sheet2!$A$4:$A$98,Sheet2!D$4:D$98) -> 1884 | E26: =_xlfn.XLOOKUP($A26&" County",Sheet2!$A$4:$A$98,Sheet2!E$4:E$98) -> 2101 | F26: =_xlfn.XLOOKUP($A26&" County",Sheet2!$A$4:$A$98,Sheet2!F$4:F$98) -> 2135
A27: McMinn | B27: =_xlfn.XLOOKUP($A27&" County",Sheet2!$A$4:$A$98,Sheet2!B$4:B$98) -> 1339 | C27: =_xlfn.XLOOKUP($A27&" County",Sheet2!$A$4:$A$98,Sheet2!C$4:C$98) -> 1572 | D27: =_xlfn.XLOOKUP($A27&" County",Sheet2!$A$4:$A$98,Sheet2!D$4:D$98) -> 1657 | E27: =_xlfn.XLOOKUP($A27&" County",Sheet2!$A$4:$A$98,Sheet2!E$4:E$98) -> 1848 | F27: =_xlfn.XLOOKUP($A27&" County",Sheet2!$A$4:$A$98,Sheet2!F$4:F$98) -> 1877
A28: Madison | B28: =_xlfn.XLOOKUP($A28&" County",Sheet2!$A$4:$A$98,Sheet2!B$4:B$98) -> 1478 | C28: =_xlfn.XLOOKUP($A28&" County",Sheet2!$A$4:$A$98,Sheet2!C$4:C$98) -> 1736 | D28: =_xlfn.XLOOKUP($A28&" County",Sheet2!$A$4:$A$98,Sheet2!D$4:D$98) -> 1829 | E28: =_xlfn.XLOOKUP($A28&" County",Sheet2!$A$4:$A$98,Sheet2!E$4:E$98) -> 2039 | F28: =_xlfn.XLOOKUP($A28&" County",Sheet2!$A$4:$A$98,Sheet2!F$4:F$98) -> 2072
A29: Marion | B29: =_xlfn.XLOOKUP($A29&" County",Sheet2!$A$4:$A$98,Sheet2!B$4:B$98) -> 1412 | C29: =_xlfn.XLOOKUP($A29&" County",Sheet2!$A$4:$A$98,Sheet2!C$4:C$98) -> 1658 | D29: =_xlfn.XLOOKUP($A29&" County",Sheet2!$A$4:$A$98,Sheet2!D$4:D$98) -> 1747 | E29: =_xlfn.XLOOKUP($A29&" County",Sheet2!$A$4:$A$98,Sheet2!E$4:E$98) -> 1948 | F29: =_xlfn.XLOOKUP($A29&" County",Sheet2!$A$4:$A$98,Sheet2!F$4:F$98) -> 1979
A30: Meigs | B30: =_xlfn.XLOOKUP($A30&" County",Sheet2!$A$4:$A$98,Sheet2!B$4:B$98) -> 1361 | C30: =_xlfn.XLOOKUP($A30&" County",Sheet2!$A$4:$A$98,Sheet2!C$4:C$98) -> 1598 | D30: =_xlfn.XLOOKUP($A30&" County",Sheet2!$A$4:$A$98,Sheet2!D$4:D$98) -> 1684 | E30: =_xlfn.XLOOKUP($A30&" County",Sheet2!$A$4:$A$98,Sheet2!E$4:E$98) -> 1878 | F30: =_xlfn.XLOOKUP($A30&" County",Sheet2!$A$4:$A$98,Sheet2!F$4:F$98) -> 1908
A31: Monroe | B31: =_xlfn.XLOOKUP($A31&" County",Sheet2!$A$4:$A$98,Sheet2!B$4:B$98) -> 1344 | C31: =_xlfn.XLOOKUP($A31&" County",Sheet2!$A$4:$A$98,Sheet2!C$4:C$98) -> 1578 | D31: =_xlfn.XLOOKUP($A31&" County",Sheet2!$A$4:$A$98,Sheet2!D$4:D$98) -> 1663 | E31: =_xlfn.XLOOKUP($A31&" County",Sheet2!$A$4:$A$98,Sheet2!E$4:E$98) -> 1854 | F31: =_xlfn.XLOOKUP($A31&" County",Sheet2!$A$4:$A$98,Sheet2!F$4:F$98) -> 1884
A32: Polk | B32: =_xlfn.XLOOKUP($A32&" County",Sheet2!$A$4:$A$98,Sheet2!B$4:B$98) -> 1307 | C32: =_xlfn.XLOOKUP($A32&" County",Sheet2!$A$4:$A$98,Sheet2!C$4:C$98) -> 1535 | D32: =_xlfn.XLOOKUP($A32&" County",Sheet2!$A$4:$A$98,Sheet2!D$4:D$98) -> 1617 | E32: =_xlfn.XLOOKUP($A32&" County",Sheet2!$A$4:$A$98,Sheet2!E$4:E$98) -> 1803 | F32: =_xlfn.XLOOKUP($A32&" County",Sheet2!$A$4:$A$98,Sheet2!F$4:F$98) -> 1832
A33: Rhea | B33: =_xlfn.XLOOKUP($A33&" County",Sheet2!$A$4:$A$98,Sheet2!B$4:B$98) -> 1356 | C33: =_xlfn.XLOOKUP($A33&" County",Sheet2!$A$4:$A$98,Sheet2!C$4:C$98) -> 1592 | D33: =_xlfn.XLOOKUP($A33&" County",Sheet2!$A$4:$A$98,Sheet2!D$4:D$98) -> 1678 | E33: =_xlfn.XLOOKUP($A33&" County",Sheet2!$A$4:$A$98,Sheet2!E$4:E$98) -> 1871 | F33: =_xlfn.XLOOKUP($A33&" County",Sheet2!$A$4:$A$98,Sheet2!F$4:F$98) -> 1901
A34: Roane | B34: =_xlfn.XLOOKUP($A34&" County",Sheet2!$A$4:$A$98,Sheet2!B$4:B$98) -> 1488 | C34: =_xlfn.XLOOKUP($A34&" County",Sheet2!$A$4:$A$98,Sheet2!C$4:C$98) -> 1747 | D34: =_xlfn.XLOOKUP($A34&" County",Sheet2!$A$4:$A$98,Sheet2!D$4:D$98) -> 1841 | E34: =_xlfn.XLOOKUP($A34&" County",Sheet2!$A$4:$A$98,Sheet2!E$4:E$98) -> 2053 | F34: =_xlfn.XLOOKUP($A34&" County",Sheet2!$A$4:$A$98,Sheet2!F$4:F$98) -> 2086
A35: Rutherford | B35: =_xlfn.XLOOKUP($A35&" County",Sheet2!$A$4:$A$98,Sheet2!B$4:B$98) -> 1705 | C35: =_xlfn.XLOOKUP($A35&" County",Sheet2!$A$4:$A$98,Sheet2!C$4:C$98) -> 2002 | D35: =_xlfn.XLOOKUP($A35&" County",Sheet2!$A$4:$A$98,Sheet2!D$4:D$98) -> 2110 | E35: =_xlfn.XLOOKUP($A35&" County",Sheet2!$A$4:$A$98,Sheet2!E$4:E$98) -> 2353 | F35: =_xlfn.XLOOKUP($A35&" County",Sheet2!$A$4:$A$98,Sheet2!F$4:F$98) -> 2391
A36: Sequatchie | B36: =_xlfn.XLOOKUP($A36&" County",Sheet2!$A$4:$A$98,Sheet2!B$4:B$98) -> 1403 | C36: =_xlfn.XLOOKUP($A36&" County",Sheet2!$A$4:$A$98,Sheet2!C$4:C$98) -> 1647 | D36: =_xlfn.XLOOKUP($A36&" County",Sheet2!$A$4:$A$98,Sheet2!D$4:D$98) -> 1736 | E36: =_xlfn.XLOOKUP($A36&" County",Sheet2!$A$4:$A$98,Sheet2!E$4:E$98) -> 1936 | F36: =_xlfn.XLOOKUP($A36&" County",Sheet2!$A$4:$A$98,Sheet2!F$4:F$98) -> 1967
A37: Sevier | B37: =_xlfn.XLOOKUP($A37&" County",Sheet2!$A$4:$A$98,Sheet2!B$4:B$98) -> 1470 | C37: =_xlfn.XLOOKUP($A37&" County",Sheet2!$A$4:$A$98,Sheet2!C$4:C$98) -> 1726 | D37: =_xlfn.XLOOKUP($A37&" County",Sheet2!$A$4:$A$98,Sheet2!D$4:D$98) -> 1819 | E37: =_xlfn.XLOOKUP($A37&" County",Sheet2!$A$4:$A$98,Sheet2!E$4:E$98) -> 2028 | F37: =_xlfn.XLOOKUP($A37&" County",Sheet2!$A$4:$A$98,Sheet2!F$4:F$98) -> 2061
A38: Shelby | B38: =_xlfn.XLOOKUP($A38&" County",Sheet2!$A$4:$A$98,Sheet2!B$4:B$98) -> 1673 | C38: =_xlfn.XLOOKUP($A38&" County",Sheet2!$A$4:$A$98,Sheet2!C$4:C$98) -> 1964 | D38: =_xlfn.XLOOKUP($A38&" County",Sheet2!$A$4:$A$98,Sheet2!D$4:D$98) -> 2070 | E38: =_xlfn.XLOOKUP($A38&" County",Sheet2!$A$4:$A$98,Sheet2!E$4:E$98) -> 2308 | F38: =_xlfn.XLOOKUP($A38&" County",Sheet2!$A$4:$A$98,Sheet2!F$4:F$98) -> 2345
A39: Union | B39: =_xlfn.XLOOKUP($A39&" County",Sheet2!$A$4:$A$98,Sheet2!B$4:B$98) -> 1319 | C39: =_xlfn.XLOOKUP($A39&" County",Sheet2!$A$4:$A$98,Sheet2!C$4:C$98) -> 1549 | D39: =_xlfn.XLOOKUP($A39&" County",Sheet2!$A$4:$A$98,Sheet2!D$4:D$98) -> 1632 | E39: =_xlfn.XLOOKUP($A39&" County",Sheet2!$A$4:$A$98,Sheet2!E$4:E$98) -> 1820 | F39: =_xlfn.XLOOKUP($A39&" County",Sheet2!$A$4:$A$98,Sheet2!F$4:F$98) -> 1849
A42: Transportation | E42: Out-of-Pocket Health Care
A43: Public Transportation | C43: Allowed | F43: Under 65 | H43: 79
A44: National | C44: 218 | F44: 65 and Older | H44: 154
A46: South Region | B46: One Car | C46: Two Cars
A47: Ownership Costs | B47: 242 | C47: 484
A49: Operating Costs | B49: 242 | C49: 484
